bitfinex/quotes_ETHUSD_20251201
["timestamp","ask_amount","ask_price","bid_price","bid_amount"]
[1764568336201,28.63913541,2832.3,2832.2,13.53]
[1764568336395,16.62028241,2832.3,2832.2,13.53]
[1764568336729,16.40059141,2832.3,2832.2,13.53]
[1764568337035,17.21673141,2832.3,2832.2,13.53]
[1764568337214,19.53348323,2832.3,2832.2,13.53]
[1764568337823,19.53348323,2832.3,2832.2,14.76]
[1764568338039,35.32804223,2832.3,2832.2,14.76]
[1764568338343,26.94182841,2832.3,2832.2,14.76]
[1764568338535,9.18091841,2832.3,2832.2,14.76]
[1764568338732,6.76159341,2832.3,2832.2,14.76]
[1764568338930,2.04193439,2832.3,2832.2,14.76]
[1764568339266,1.55263439,2832.3,2832.2,15.99]
[1764568339443,1.30723439,2832.3,2832.2,15.99]
[1764568339814,1.77863439,2832.3,2832.2,15.99]
[1764568340655,1.77863439,2832.3,2832.2,17.22]
[1764568341152,1.30723439,2832.3,2832.2,17.22]
[1764568341448,1.30723439,2832.3,2832.2,17.7142]
[1764568341828,1.30723439,2832.3,2832.2,17.22]
[1764568342029,1.30723439,2832.3,2832.2,18.45]
[1764568342239,2.26793439,2832.3,2832.2,18.45]
[1764568342617,1.77863439,2832.3,2832.2,18.45]
[1764568343140,2.85158087,2832.3,2832.2,18.45]
[1764568343521,2.27153439,2832.3,2832.2,19.68]
[1764568344044,5.80223382,2832.3,2832.2,19.68]
[1764568344628,5.80223382,2832.3,2832.2,20.91]
[1764568346264,5.80223382,2832.3,2832.2,22.14]
[1764568346434,2.27153439,2832.3,2832.2,22.14]
[1764568346966,5.80223382,2832.3,2832.2,22.14]
[1764568347144,6.73570258,2832.3,2832.2,22.14]
[1764568347985,3.20500315,2832.3,2832.2,23.37]
[1764568348160,2.71210315,2832.3,2832.2,23.37]
[1764568348362,2.71210315,2832.3,2832.2,23.8376]
[1764568348363,1.30723439,2832.3,2832.2,23.8376]
[1764568348967,1.30723439,2832.3,2832.2,23.37]
[1764568349161,1.30723439,2832.3,2832.2,24.6]
[1764568349366,1.80313439,2832.3,2832.2,24.6]
[1764568349877,1.30723439,2832.3,2832.2,25.0676]
[1764568350251,1.30723439,2832.3,2832.2,24.6]
[1764568350651,1.30723439,2832.3,2832.2,25.83]
[1764568351161,1.80313439,2832.3,2832.2,25.83]
[1764568351755,2.29863439,2832.3,2832.2,25.83]
[1764568352070,2.29863439,2832.3,2832.2,27.06]
[1764568352565,1.30723439,2832.3,2832.2,27.5276]
[1764568352768,1.30723439,2832.3,2832.2,28.0002]
[1764568352938,1.30723439,2832.3,2832.2,31.05842409]
[1764568353138,1.30723439,2832.3,2832.2,30.69747241]
[1764568353466,1.30723439,2832.3,2832.2,31.92747241]
[1764568353670,1.30723439,2832.3,2832.2,28.29]
[1764568354369,1.80313439,2832.3,2832.2,28.29]
[1764568354773,1.80313439,2832.3,2832.2,29.52]
[1764568355977,2.29863439,2832.3,2832.2,29.52]
[1764568356164,2.29863439,2832.3,2832.2,30.75]
[1764568357572,1.30723439,2832.3,2832.2,31.98]
[1764568357776,1.80313439,2832.3,2832.2,31.98]
[1764568358845,2.29863439,2832.3,2832.2,31.98]
[1764568359079,2.29863439,2832.3,2832.2,33.21]
[1764568360180,1.06332513,2832.8,2832.2,44.06034818]
[1764568360365,0.5311952,2834.7,2832.7,7.01672061]
[1764568360366,0.226,2833.7,2832.7,7.01672061]
[1764568360567,0.226,2833.7,2832.7,7.96133911]
[1764568360773,0.35364029,2833.6,2832.8,0.4726]
[1764568360951,0.35364029,2833.3,2832.8,0.4726]
[1764568361151,0.226,2833.2,2832.9,0.23803185]
[1764568361349,0.57964029,2833.2,2832.8,0.4726]
[1764568361673,0.226,2833.2,2832.6,11.06357647]
[1764568361987,0.226,2833.2,2832.8,1.23]
[1764568361988,0.35364029,2833.0,2832.8,1.23]
[1764568362350,0.226,2833.2,2832.9,0.9402]
[1764568362697,0.226,2833.2,2833.1,0.4676]
[1764568363177,0.57964029,2833.2,2833.1,0.4676]
[1764568363382,0.57964029,2833.2,2833.1,1.6976]
[1764568363777,0.57964029,2833.2,2833.1,1.23]
[1764568363978,1.07554029,2833.2,2833.1,1.23]
[1764568364483,1.57104029,2833.2,2833.1,1.23]
[1764568364655,0.57964029,2833.2,2833.1,5.98970244]
[1764568364843,1.07554029,2833.2,2833.1,2.46]
[1764568365042,0.7219,2833.2,2833.1,2.46]
[1764568365248,1.07554029,2833.2,2833.1,5.98970244]
[1764568366052,1.07554029,2833.2,2833.1,7.21970244]
[1764568366249,0.226,2833.2,2833.1,7.85200244]
[1764568366578,0.57964029,2833.2,2833.1,7.85200244]
[1764568366779,0.57964029,2833.2,2833.1,4.3223]
[1764568366995,1.07554029,2833.2,2833.1,3.69]
[1764568367284,1.57104029,2833.2,2833.1,3.69]
[1764568367574,1.57104029,2833.2,2833.1,4.92]
[1764568368178,0.84954029,2833.2,2833.1,4.92]
[1764568368376,0.57964029,2833.2,2833.1,5.3876]
[1764568368576,1.07554029,2833.2,2833.1,8.44970244]
[1764568368784,1.07554029,2833.2,2833.1,6.15]
[1764568369380,1.57104029,2833.2,2833.1,6.15]
[1764568369781,1.57104029,2833.2,2833.1,9.67970244]
[1764568370081,1.57104029,2833.2,2833.1,6.15]
[1764568370276,1.57104029,2833.2,2833.1,7.38]
[1764568370574,1.57304029,2833.2,2833.1,7.38]
[1764568371777,1.57304029,2833.2,2833.1,8.61]
[1764568372896,2.2986344,2833.2,2833.1,8.61]
[1764568373052,2.881445,2833.2,2833.1,9.84]
[1764568374173,2.15585089,2833.2,2833.1,9.84]
[1764568374370,1.57304029,2833.2,2833.1,9.84]
[1764568374583,1.57304029,2833.2,2833.1,11.07]
[1764568375490,1.03544029,2833.2,2833.1,11.07]
[1764568376400,1.03544029,2833.2,2833.1,12.3]
[1764568377781,1.03544029,2833.2,2833.1,13.53]
[1764568379060,1.03544029,2833.2,2833.1,14.76]
[1764568380594,0.58164029,2833.2,2833.1,16.4576]
[1764568381401,0.228,2833.2,2833.1,20.60720244]
[1764568381605,0.58164029,2833.2,2833.1,20.60720244]
[1764568381899,0.58164029,2833.2,2833.1,21.83720244]
[1764568382400,0.002,2833.2,2833.1,24.37389736]
[1764568382567,0.228,2833.2,2833.1,24.37389736]
[1764568383191,0.228,2833.2,2833.1,25.60389736]
[1764568383412,0.13527216,2833.2,2833.1,25.60389736]
[1764568384815,0.13527216,2833.2,2833.1,26.83389736]
[1764568386178,0.002,2833.8,2833.4,0.4676]
[1764568386380,0.002,2833.8,2833.7,0.4676]
[1764568386608,0.002,2833.8,2833.7,0.9228]
[1764568386844,0.002,2833.8,2833.7,0.4676]
[1764568387107,0.35564029,2833.8,2833.7,0.4676]
[1764568387408,0.35564029,2833.8,2833.7,1.6976]
[1764568388177,0.35564029,2833.8,2833.7,5.22655507]
[1764568388909,0.35564029,2833.8,2833.7,6.45655507]
[1764568390111,0.35564029,2833.8,2833.7,5.98895507]
[1764568390281,0.35564029,2833.8,2833.7,3.69]
[1764568390482,0.80944029,2833.8,2833.7,7.21895507]
[1764568391011,0.80944029,2833.8,2833.7,3.69]
[1764568391177,0.80944029,2833.8,2833.7,7.21895507]
[1764568391581,1.03444029,2833.8,2833.7,7.21895507]
[1764568391810,1.03444029,2833.8,2833.7,8.44895507]
[1764568393219,1.03444029,2833.8,2833.7,6.15]
[1764568393391,1.49164029,2833.8,2833.7,9.67895507]
[1764568393596,1.03444029,2833.8,2833.7,9.67895507]
[1764568393802,1.03444029,2833.8,2833.7,6.15]
[1764568393803,1.49164029,2833.8,2833.7,6.15]
[1764568394595,1.49164029,2833.8,2833.7,7.38]
[1764568395217,3.11202483,2833.8,2833.7,7.38]
[1764568395586,6.64085537,2833.8,2833.7,7.38]
[1764568395792,13.59502925,2833.8,2833.7,8.61]
[1764568396325,25.31018925,2833.8,2833.7,8.61]
[1764568397220,25.31018925,2833.8,2833.7,9.84]
[1764568398720,43.59502925,2833.8,2833.7,11.07]
[1764568400094,43.59502925,2833.8,2833.7,12.3]
[1764568401206,43.23938896,2833.8,2833.7,12.3]
[1764568401403,13.59292967,2833.8,2833.7,13.53]
[1764568401708,44.65394325,2833.8,2833.7,13.53]
[1764568402421,29.59790225,2833.8,2833.7,13.53]
[1764568402624,29.59790225,2833.8,2833.7,14.76]
[1764568402826,36.14708025,2833.8,2833.7,14.76]
[1764568403931,39.59538525,2833.8,2833.7,14.76]
[1764568404144,39.59538525,2833.8,2833.7,15.99]
[1764568404829,37.59538525,2833.8,2833.7,15.99]
[1764568405011,27.75305837,2833.8,2833.7,15.99]
[1764568405325,25.73645725,2833.8,2833.7,15.99]
[1764568405495,25.73645725,2833.8,2833.7,17.22]
[1764568405819,14.65394325,2833.8,2833.7,17.22]
[1764568406027,36.51772725,2833.8,2833.7,17.22]
[1764568406320,35.43911925,2833.8,2833.7,17.22]
[1764568406912,34.78871125,2833.8,2833.7,18.45]
[1764568407117,17.63361837,2833.8,2833.7,18.45]
[1764568407426,23.43404125,2833.8,2833.7,18.45]
[1764568408004,51.23151313,2833.8,2833.7,18.45]
[1764568408630,0.227,2833.8,2833.7,30.70142495]
[1764568409197,0.227,2833.8,2833.7,24.15275507]
[1764568409600,0.58054071,2833.8,2833.7,24.15275507]
[1764568409796,0.227,2833.8,2833.7,20.139]
[1764568410027,0.227,2833.8,2833.7,21.369]
[1764568410028,0.58054071,2833.8,2833.7,21.369]
[1764568410826,1.05294071,2833.8,2833.7,20.91]
[1764568411437,1.77853482,2833.8,2833.7,22.14]
[1764568411935,0.58054071,2833.8,2833.7,22.599]
[1764568412697,0.35554071,2833.8,2833.7,22.599]
[1764568412900,0.58054071,2833.8,2833.7,23.829]
[1764568413301,1.05294071,2833.8,2833.7,23.37]
[1764568413508,0.58054071,2833.8,2833.7,23.37]
[1764568413951,0.58054071,2833.8,2833.7,23.829]
[1764568414313,0.58054071,2833.8,2833.7,25.059]
[1764568415212,0.58054071,2833.8,2833.7,24.6]
[1764568415417,1.51844071,2833.8,2833.7,24.6]
[1764568415747,2.24403482,2833.8,2833.7,24.6]
[1764568415921,1.51844071,2833.8,2833.7,25.83]
[1764568416122,1.05294071,2833.8,2833.7,25.83]
[1764568417404,0.82794071,2833.8,2833.7,27.06]
[1764568417610,0.58054071,2833.8,2833.7,27.519]
[1764568417809,0.58054071,2833.8,2833.7,27.06]
[1764568418746,0.58054071,2833.8,2833.7,28.29]
[1764568418932,1.05294071,2833.8,2833.7,28.29]
[1764568420344,1.05294071,2833.8,2833.7,29.52]
[1764568420659,1.51844071,2833.8,2833.7,29.52]
[1764568421156,1.05294071,2833.8,2833.7,29.52]
[1764568421621,1.05294071,2833.8,2833.7,30.75]
[1764568421951,0.58054071,2833.8,2833.7,31.209]
[1764568422724,0.58054071,2833.8,2833.7,30.75]
[1764568422948,1.05294071,2833.8,2833.7,30.75]
[1764568423160,0.405504,2834.4,2833.7,30.75]
[1764568423161,0.1759952,2834.7,2833.7,58.17587535]
[1764568423368,0.52963548,2834.7,2834.6,0.1425]
[1764568423654,0.75463548,2834.7,2834.6,0.1425]
[1764568423839,1.22703548,2834.7,2834.1,0.1425]
[1764568424046,0.35364028,2834.2,2833.9,0.1425]
[1764568424268,0.57864028,2834.1,2833.9,3.2176]
[1764568424580,0.225,2834.1,2833.9,4.4476]
[1764568424735,0.225,2834.1,2834.0,0.285]
[1764568425060,0.57864028,2834.1,2834.0,0.285]
[1764568425562,0.58064028,2834.1,2834.0,3.81358151]
[1764568425749,0.58064028,2834.1,2834.0,5.04358151]
[1764568425920,0.002,2834.1,2834.0,6.33132031]
[1764568426121,0.227,2834.1,2834.0,6.33132031]
[1764568427430,0.227,2834.1,2834.0,7.56132031]
[1764568429157,0.227,2834.1,2834.0,8.79132031]
[1764568430653,0.002,2834.1,2834.0,10.02132031]
[1764568430860,0.227,2834.1,2834.0,10.02132031]
[1764568432056,0.227,2834.1,2834.0,11.10882031]
[1764568433186,0.58064028,2834.1,2834.0,11.10882031]
[1764568433481,0.58064028,2834.1,2834.0,12.33882031]
[1764568434072,1.05024028,2834.1,2834.0,7.38]
[1764568434378,1.54324028,2834.1,2834.0,7.38]
[1764568434777,1.05024028,2834.1,2834.0,8.61]
[1764568434961,0.58064028,2834.1,2834.0,8.7525]
[1764568435161,0.58064028,2834.1,2834.0,12.28108151]
[1764568435382,0.35564028,2834.1,2834.0,8.7525]
[1764568435554,0.227,2834.1,2834.0,8.7525]
[1764568435879,0.35564028,2834.1,2834.0,8.61]
[1764568436051,0.227,2834.1,2834.0,12.28108151]
[1764568436245,0.002,2834.1,2834.0,15.21505984]
[1764568436450,0.227,2834.1,2834.0,15.21505984]
[1764568437075,0.58064028,2834.1,2834.0,15.21505984]
[1764568437274,0.227,2834.1,2834.0,15.21505984]
[1764568437464,0.58064028,2834.1,2834.0,15.21505984]
[1764568437652,0.58064028,2834.1,2834.0,16.44505984]
[1764568438257,0.58064028,2834.1,2834.0,14.59858151]
[1764568438452,0.58064028,2834.1,2834.0,14.74118151]
[1764568438858,0.58064028,2834.1,2834.0,14.59858151]
[1764568439058,0.58064028,2834.1,2834.0,15.82858151]
[1764568439912,0.58064028,2834.1,2834.0,12.3]
[1764568440413,0.58064028,2834.1,2834.0,13.53]
[1764568440718,1.05024028,2834.1,2834.0,13.53]
[1764568441212,1.54324028,2834.1,2834.0,13.53]
[1764568441411,5.07169728,2834.1,2834.0,13.53]
[1764568441611,1.54324028,2834.1,2834.0,14.76]
[1764568441914,25.73715718,2834.1,2834.0,14.76]
[1764568442109,24.87716639,2834.1,2834.0,14.76]
[1764568443100,24.87716639,2834.1,2834.0,15.99]
[1764568444806,19.31904939,2834.1,2834.0,17.22]
[1764568445312,22.23518972,2834.1,2834.0,17.22]
[1764568446418,22.23518972,2834.1,2834.0,18.45]
[1764568447637,22.01018972,2834.1,2834.0,18.45]
[1764568447814,22.23518972,2834.1,2834.0,19.68]
[1764568449319,22.23518972,2834.1,2834.0,20.91]
[1764568450759,22.23518972,2834.1,2834.0,22.14]
[1764568451526,36.55169472,2834.1,2834.0,22.14]
[1764568451838,27.59064272,2834.1,2834.0,22.14]
[1764568452002,27.59064272,2834.1,2834.0,23.37]
[1764568452920,27.30366272,2834.1,2834.0,23.37]
[1764568453320,9.11893572,2834.1,2834.0,23.37]
[1764568453533,27.30366272,2834.1,2834.0,24.6]
[1764568454551,28.27305172,2834.1,2834.0,24.6]
[1764568454953,21.95665072,2834.1,2834.0,25.83]
[1764568455653,23.33465572,2834.1,2834.0,25.83]
[1764568456562,24.31842172,2834.1,2834.0,25.83]
[1764568456732,24.31842172,2834.1,2834.0,27.06]
[1764568457231,24.31842172,2834.1,2834.0,15.85033298]
[1764568457667,1.13109811,2834.0,2833.9,1.23]
[1764568457850,32.44733839,2834.0,2833.9,1.23]
[1764568458155,36.44533839,2834.0,2833.9,1e-08]
[1764568458530,39.9739199,2834.0,2833.9,1e-08]
[1764568459263,41.03519998,2834.0,2833.9,1e-08]
[1764568459444,41.03519998,2834.0,2833.9,1.23000001]
[1764568460864,41.03519998,2834.0,2833.9,2.46000001]
[1764568461434,29.87792498,2834.0,2833.9,2.46000001]
[1764568461636,32.09186598,2834.0,2833.9,2.46000001]
[1764568462174,32.09186598,2834.0,2833.9,3.69000001]
[1764568462662,24.9714349,2834.0,2833.9,3.69000001]
[1764568462854,9.7177969,2834.0,2833.9,3.69000001]
[1764568463033,7.93108179,2834.0,2833.9,3.69000001]
[1764568463234,7.70608179,2834.0,2833.9,3.69000001]
[1764568463851,9.3354959,2834.0,2833.9,4.92000001]
[1764568464554,9.1104959,2834.0,2833.9,4.92000001]
[1764568464759,9.4592899,2834.0,2833.9,4.92000001]
[1764568465239,8.9662899,2834.0,2833.9,6.15000001]
[1764568465440,15.02126732,2834.0,2833.9,6.15000001]
[1764568465664,18.00928532,2834.0,2833.9,6.15000001]
[1764568465965,16.02999132,2834.0,2833.9,6.15000001]
[1764568466636,21.63125332,2834.0,2833.9,7.38000001]
[1764568467757,30.38919532,2834.0,2833.9,7.38000001]
[1764568467941,29.62556632,2834.0,2833.9,8.61000001]
[1764568468349,24.78546632,2834.0,2833.9,8.61000001]
[1764568468648,24.73446632,2834.0,2833.9,8.61000001]
[1764568469163,7.99765128,2834.0,2833.9,8.61000001]
[1764568469377,18.56406521,2834.0,2833.9,9.84000001]
[1764568469575,19.28965932,2834.0,2833.9,9.84000001]
[1764568469774,18.96956921,2834.0,2833.9,9.84000001]
[1764568470175,19.69516332,2834.0,2833.9,9.84000001]
[1764568470747,27.29567332,2834.0,2833.9,11.07000001]
[1764568471980,39.02827332,2834.0,2833.9,11.07000001]
[1764568472179,39.02827332,2834.0,2833.9,12.30000001]
[1764568472854,32.64900732,2834.0,2833.9,12.30000001]
[1764568473854,32.64729832,2834.0,2833.9,12.30000001]
[1764568474055,32.64729832,2834.0,2833.9,13.53000001]
[1764568474481,19.50212832,2834.0,2833.9,13.53000001]
[1764568474683,19.72712832,2834.0,2833.9,13.53000001]
[1764568474858,22.37985632,2834.0,2833.9,13.53000001]
[1764568475281,21.94626032,2834.0,2833.9,13.53000001]
[1764568475483,10.9434789,2834.0,2833.9,14.76000001]
[1764568475785,13.1174789,2834.0,2833.9,14.76000001]
[1764568476180,11.3964789,2834.0,2833.9,14.76000001]
[1764568476480,8.8800699,2834.0,2833.9,14.76000001]
[1764568476783,9.6422699,2834.0,2833.9,14.76000001]
[1764568477104,19.80172024,2834.0,2833.9,15.99000001]
[1764568477511,15.18920124,2834.0,2833.9,15.99000001]
[1764568477881,15.18920124,2834.0,2833.9,16.13260001]
[1764568477882,9.34131424,2834.0,2833.9,16.13260001]
[1764568478294,9.34131424,2834.0,2833.9,17.36260001]
[1764568478488,7.7990409,2834.0,2833.9,17.36260001]
[1764568478704,8.0240409,2834.0,2833.9,17.36260001]
[1764568479010,14.3563009,2834.0,2833.9,17.36260001]
[1764568479311,14.3563009,2834.0,2833.9,17.22000001]
[1764568479508,15.3435009,2834.0,2833.9,17.22000001]
[1764568479709,15.3435009,2834.0,2833.9,18.45000001]
[1764568479877,18.0436159,2834.0,2833.9,18.45100001]
[1764568480077,18.0456159,2834.0,2833.9,18.45100001]
[1764568480496,24.35954832,2834.0,2833.9,18.45100001]
[1764568480878,31.49044232,2834.0,2833.9,18.45100001]
[1764568481106,31.49044232,2834.0,2833.9,19.68100001]
[1764568481303,29.37809632,2834.0,2833.9,19.68100001]
[1764568481910,12.54145232,2834.0,2833.9,19.68100001]
[1764568482091,29.06314532,2834.0,2833.9,19.67237001]
[1764568482415,29.30000706,2834.0,2833.9,19.67237001]
[1764568482716,29.30000706,2834.0,2833.9,20.90237001]
[1764568483103,30.23494906,2834.0,2833.9,20.90237001]
[1764568483397,29.25294906,2834.0,2833.9,20.90237001]
[1764568484003,29.25294906,2834.0,2833.9,22.13237001]
[1764568484310,35.23820006,2834.0,2833.9,22.13237001]
[1764568485106,37.03820006,2834.0,2833.9,22.13237001]
[1764568485300,37.03820006,2834.0,2833.9,23.36237001]
[1764568485503,43.58899422,2834.0,2833.9,23.36237001]
[1764568486237,42.77831406,2834.0,2833.9,23.36237001]
[1764568486440,49.32910822,2834.0,2833.9,23.36237001]
[1764568486638,37.25891906,2834.0,2833.9,24.59237001]
[1764568487097,38.17636506,2834.0,2833.9,24.59237001]
[1764568487297,1.13109811,2833.9,2833.4,0.001]
[1764568487503,45.07462671,2833.6,2833.4,0.001]
[1764568487720,45.29962671,2833.6,2833.4,0.001]
[1764568487931,45.79852671,2833.6,2833.4,0.001]
[1764568488135,49.32760632,2833.6,2833.4,0.001]
[1764568488303,49.32760632,2833.6,2833.5,1.231]
[1764568489626,45.22281232,2833.6,2833.5,1.231]
[1764568489836,42.96679332,2833.6,2833.5,2.461]
[1764568490203,43.09314332,2833.6,2833.5,2.461]
[1764568491338,47.52438432,2833.6,2833.5,3.691]
[1764568491520,45.79491132,2833.6,2833.5,3.691]
[1764568491716,45.56991132,2833.6,2833.5,3.691]
[1764568491922,33.36748232,2833.6,2833.5,3.691]
[1764568492332,36.60356432,2833.6,2833.5,3.691]
[1764568492535,19.32760632,2833.6,2833.5,4.921]
[1764568492749,37.32232332,2833.6,2833.5,4.921]
[1764568493356,46.41914632,2833.6,2833.5,4.921]
[1764568493853,46.41914632,2833.6,2833.5,6.151]
[1764568494234,46.15464332,2833.6,2833.5,6.151]
[1764568494618,44.48817032,2833.6,2833.5,6.151]
[1764568495026,44.26317032,2833.6,2833.5,6.151]
[1764568495250,46.97851832,2833.6,2833.5,7.381]
[1764568496360,49.32760632,2833.6,2833.5,7.381]
[1764568496668,49.32760632,2833.6,2833.5,2.81765044]
[1764568496960,49.37760632,2833.6,2833.5,1.11673878]
[1764568497364,1.13109811,2833.5,2833.4,0.001]
[1764568497546,1.22264428,2833.2,2833.1,8.10869747]
[1764568497853,45.32482671,2833.2,2833.1,8.10869747]
[1764568498054,45.78832671,2833.2,2833.1,8.10869747]
[1764568498458,49.31790457,2833.2,2833.1,8.10869747]
[1764568499057,53.04090457,2833.2,2833.1,8.10869747]
[1764568499361,53.04090457,2833.2,2833.1,9.33869747]
[1764568499750,53.04090457,2833.2,2832.9,0.001]
[1764568499751,30.75914428,2833.0,2832.9,0.001]
[1764568499981,45.04982671,2833.0,2832.9,0.001]
[1764568500276,45.73832671,2833.0,2832.9,0.001]
[1764568500450,49.04315374,2833.0,2832.9,0.001]
[1764568500776,52.79798077,2833.0,2832.5,0.001]
[1764568500964,0.75914428,2832.6,2832.5,0.001]
[1764568501167,38.72403255,2832.6,2832.5,0.001]
[1764568501364,39.18753255,2832.6,2832.5,0.001]
[1764568501563,12.65498655,2832.6,2832.5,0.001]
[1764568501747,13.34348655,2832.6,2832.5,0.001]
[1764568501948,13.34348655,2832.6,2832.5,1.231]
[1764568502173,13.80698655,2832.6,2832.5,1.231]
[1764568502440,29.46034104,2832.6,2832.5,1.231]
[1764568502853,36.0111352,2832.6,2832.5,1.231]
[1764568503079,29.46034104,2832.6,2832.5,1.231]
[1764568503291,36.0111352,2832.6,2832.5,1.231]
[1764568503584,41.47927104,2832.6,2832.5,2.461]
[1764568503943,33.39865304,2832.6,2832.5,2.461]
[1764568504378,43.76653604,2832.6,2832.5,2.461]
[1764568504548,33.88918304,2832.6,2832.5,2.461]
[1764568504876,23.16135704,2832.6,2832.5,3.691]
[1764568505059,23.38635704,2832.6,2832.5,3.691]
[1764568505378,30.38550004,2832.6,2832.5,3.691]
[1764568505561,25.45838304,2832.6,2832.5,3.691]
[1764568506192,18.13085804,2832.6,2832.5,4.921]
[1764568506382,25.78457804,2832.6,2832.5,5.0636]
[1764568506993,19.00878388,2832.6,2832.5,5.0636]
[1764568507178,6.69364028,2832.6,2832.5,5.2062]
[1764568507384,6.69364028,2832.6,2832.5,6.4362]
[1764568507385,7.64423439,2832.6,2832.5,6.4362]
[1764568507766,7.64423439,2832.6,2832.5,6.2936]
[1764568507767,11.58006388,2832.6,2832.5,6.2936]
[1764568507967,14.14347188,2832.6,2832.5,6.2936]
[1764568508171,17.43629288,2832.6,2832.5,6.2936]
[1764568508410,17.66129288,2832.6,2832.5,6.2936]
[1764568508767,17.66129288,2832.6,2832.5,7.5236]
[1764568509198,17.52744988,2832.6,2832.5,7.5236]
[1764568509971,17.52744988,2832.6,2832.5,8.7536]
[1764568510193,18.39571888,2832.6,2832.5,8.7536]
[1764568510381,12.05571888,2832.6,2832.5,8.7536]
[1764568510694,8.49143188,2832.6,2832.5,8.7536]
[1764568510914,5.24006388,2832.6,2832.5,8.7536]
[1764568511099,1.48473839,2832.6,2832.5,8.8962]
[1764568511410,5.24006388,2832.6,2832.5,9.9836]
[1764568512085,18.90581688,2832.6,2832.5,9.9836]
[1764568512289,16.14052088,2832.6,2832.5,9.9836]
[1764568512900,16.14052088,2832.6,2832.5,11.2136]
[1764568513066,5.24006388,2832.6,2832.5,11.2136]
[1764568513265,16.14052088,2832.6,2832.5,11.2136]
[1764568514170,5.24006388,2832.6,2832.5,12.4436]
[1764568514371,5.01506388,2832.6,2832.5,12.5862]
[1764568514584,5.24006388,2832.6,2832.5,12.5862]
[1764568514808,5.01506388,2832.6,2832.5,12.4436]
[1764568515043,1.48473839,2832.6,2832.5,12.5862]
[1764568515255,0.35364028,2832.6,2832.5,12.5862]
[1764568515537,0.75914428,2832.6,2832.5,13.8162]
[1764568515741,0.98414428,2832.6,2832.5,13.8162]
[1764568516868,0.002,2832.8,2832.5,19.08132666]
[1764568517001,0.57864028,2832.7,2832.6,0.1426]
[1764568517198,0.57864028,2832.7,2832.6,0.2852]
[1764568517833,0.35364028,2832.7,2832.6,0.2852]
[1764568518034,0.225,2832.7,2832.6,2.66938824]
[1764568518240,0.57864028,2832.7,2832.6,2.66938824]
[1764568518462,0.002,2832.8,2832.6,7.42971373]
[1764568518736,0.225,2832.7,2832.6,7.14451373]
[1764568519110,0.002,2833.1,2832.7,0.2852]
[1764568519332,0.57864028,2833.0,2832.8,1.09600392]
[1764568519501,0.57864028,2833.0,2832.8,1.23860392]
[1764568519705,0.57864028,2833.0,2832.9,0.2852]
[1764568520520,0.57864028,2833.0,2832.9,3.81515163]
[1764568521044,0.57864028,2833.0,2832.9,0.2852]
[1764568521242,0.57864028,2833.0,2832.9,1.5152]
[1764568522758,0.57864028,2833.0,2832.9,2.7452]
[1764568524269,0.35364028,2833.0,2832.9,3.9752]
[1764568524565,0.57864028,2833.0,2832.9,7.50515163]
[1764568524934,0.57864028,2833.0,2832.9,3.9752]
[1764568526265,0.57864028,2833.0,2832.9,5.2052]
[1764568526973,0.57864028,2833.0,2832.9,8.73515163]
[1764568527476,0.35364028,2833.0,2832.9,8.73515163]
[1764568527665,0.57864028,2833.0,2832.9,7.7847341]
[1764568529264,0.57864028,2833.0,2832.9,7.6652]
[1764568529760,0.57864028,2833.0,2832.9,7.5226]
[1764568530149,0.57864028,2833.0,2832.9,7.6652]
[1764568530664,0.57864028,2833.0,2832.9,8.8952]
[1764568531940,0.57864028,2833.0,2832.9,10.1252]
[1764568532637,0.225,2833.0,2832.9,9.9826]
[1764568532833,0.57864028,2833.0,2832.9,9.9826]
[1764568533444,0.57864028,2833.0,2832.9,11.2126]
[1764568533843,0.58064028,2833.0,2832.9,11.2126]
[1764568534044,0.58064028,2833.0,2832.9,11.3552]
[1764568534268,1.097504,2833.0,2832.9,11.07]
[1764568534456,2.17673839,2833.0,2832.9,11.07]
[1764568534640,1.71173839,2833.0,2832.9,11.2126]
[1764568534840,1.71173839,2833.0,2832.9,12.4426]
[1764568536145,1.71173839,2833.0,2832.9,13.6726]
[1764568536876,1.71173839,2833.0,2832.9,13.8152]
[1764568537268,1.71173839,2833.0,2832.9,13.6726]
[1764568537653,1.71173839,2833.0,2832.9,14.9026]
[1764568538155,1.71173839,2833.0,2832.9,14.76]
[1764568539072,1.71173839,2833.0,2832.9,15.99]
[1764568539589,1.71173839,2833.0,2832.9,16.1326]
[1764568540459,5.24156542,2833.0,2832.9,17.22]
[1764568540998,6.18436542,2833.0,2832.9,17.22]
[1764568541173,21.12078842,2833.0,2832.9,17.22]
[1764568541378,17.65540142,2833.0,2832.9,17.22]
[1764568541780,17.65540142,2833.0,2832.9,18.45]
[1764568542176,17.54405442,2833.0,2832.9,18.45]
[1764568542379,16.56205442,2833.0,2832.9,18.45]
[1764568543288,17.54305442,2833.0,2832.9,19.68]
[1764568544391,25.48945447,2833.0,2832.9,19.68]
[1764568544687,25.48945447,2833.0,2832.9,20.91]
[1764568545278,39.03805347,2833.0,2832.9,20.91]
[1764568545479,36.02825747,2833.0,2832.9,20.91]
[1764568546299,36.03125747,2833.0,2832.9,20.91]
[1764568546595,34.34972547,2833.0,2832.9,22.14]
[1764568546798,35.4111257,2833.0,2832.9,22.14]
[1764568547409,37.9736937,2833.0,2832.9,22.14]
[1764568547911,37.9736937,2833.0,2832.9,23.37]
[1764568548406,37.9663597,2833.0,2832.9,23.37]
[1764568548582,37.7413597,2833.0,2832.9,23.37]
[1764568548782,37.9663597,2833.0,2832.9,23.37]
[1764568549517,35.8382797,2833.0,2832.9,23.37]
[1764568549806,35.8382797,2833.0,2832.9,24.6]
[1764568550398,23.50737042,2833.0,2832.9,24.6]
[1764568550590,22.62603247,2833.0,2832.9,24.6]
[1764568550904,22.27612447,2833.0,2832.9,24.6]
[1764568551111,22.27612447,2833.0,2832.9,25.83]
[1764568551513,24.40868547,2833.0,2832.9,25.83]
[1764568552112,22.58932447,2833.0,2832.9,25.83]